[Event "Int SVK-ch Open 2020"]
[Site "Drienica"]
[Date "2020.08.15"]
[Round "8.1"]
[White "Hros, Roman"]
[Black "Czebe, Attila"]
[Result "1-0"]
[ECO "A45"]
[WhiteElo "2199"]
[BlackElo "2378"]
[Annotator "ChessBase"]
[PlyCount "118"]
[EventDate "2020.08.07"]
[EventType "swiss"]
[EventCountry "SVK"]
[TimeControl "40/5400+30:1800+30"]

1. d4 {[%emt 0:00:00]} Nf6 {[%emt 0:00:00]} 2. Bf4 {[%emt 0:00:27]} g6 {[%emt 0:01:13]} 3. Nc3 {[%emt 0:01:02]} d5 {[%emt 0:02:04]} 4. e3 {[%emt 0:01:23]} Bg7 {[%emt 0:00:40]} 5. h4 {[%emt 0:01:09]} a6 {[%emt 0:00:32]} 6. h5 {[%emt 0:02:16]} Nxh5 {[%emt 0:01:11]} 7. Rxh5 {[%emt 0:00:31]} gxh5 {[%emt 0:00:11]} 8. Qxh5 {[%emt 0:00:00]} Be6 {[%emt 0:03:03]} 9. Nf3 {[%emt 0:02:16]} Nd7 {[%emt 0:05:10]} 10. Nxd5 {[%emt 0:14:07]} Bxd5 {[%emt 0:00:44]} 11. Qxd5 {[%emt 0:00:48]} c6 {[%emt 0:00:13]} 12. Qg5 {[%emt 0:15:27]} Rg8 {[%emt 0:00:14]} 13. O-O-O {[%emt 0:07:04]} e6 {[%emt 0:04:49]} 14. Qh5 {[%emt 0:02:21]} Nf6 {[%emt 0:01:28]} 15. Qh4 {[%emt 0:00:43]} h6 {[%emt 0:00:43]} 16. Be5 {[%emt 0:08:09]} Nd7 {[%emt 0:05:15]} 17. Qg3 {[%emt 0:04:21]} Nxe5 {[%emt 0:01:12]} 18. dxe5 {[%emt 0:02:55]} Qa5 {[%emt 0:00:05]} 19. Rd4 {[%emt 0:16:50]} c5 {[%emt 0:06:53]} 20. Rg4 {[%emt 0:07:25]} Qxa2 {[%emt 0:01:07]} 21. Nd2 {[%emt 0:07:26]} Qa1+ {[%emt 0:20:54]} 22. Nb1 {[%emt 0:00:01]} Kf8 {[%emt 0:09:31]} 23. Bd3 {[%emt 0:01:11]} a5 {[%emt 0:03:08]} 24. Bh7 {[%emt 0:00:45]} a4 {[%emt 0:00:07]} 25. f4 {[%emt 0:02:43]} a3 {[%emt 0:01:00]} 26. bxa3 {[%emt 0:00:02]} Rxa3 {[%emt 0:00:05]} 27. Qh4 {[%emt 0:00:46]} f6 {[%emt 0:01:37]} 28. Rxg7 {[%emt 0:01:09]} Kxg7 {[%emt 0:01:41]} 29. Bxg8 {[%emt 0:00:01]} Kxg8 {[%emt 0:04:06]} 30. exf6 {[%emt 0:00:33]} Kh7 {[%emt 0:00:30]} 31. Qg4 {[%emt 0:00:40]} Qxf6 {[%emt 0:00:00]} 32. Nxa3 {[%emt 0:00:05]} Qc3 {[%emt 0:00:00]} 33. Qxe6 {[%emt 0:01:03]} Qxa3+ {[%emt 0:00:00]} 34. Kd1 {[%emt 0:00:35]} Qa1+ {[%emt 0:00:22]} 35. Ke2 {[%emt 0:00:21]} Qc3 {[%emt 0:01:05]} 36. Qe4+ {[%emt 0:00:45]} Kh8 {[%emt 0:00:16]} 37. Qe8+ {[%emt 0:00:32]} Kg7 {[%emt 0:00:05]} 38. Qe7+ {[%emt 0:00:28]} Kg6 {[%emt 0:00:11]} 39. Qe4+ {[%emt 0:00:30]} Kf6 {[%emt 0:00:00]} 40. g4 {[%emt 0:00:00]} b5 {[%emt 0:00:00]} 41. Qh7 {[%emt 0:13:47]} Qc4+ {[%emt 0:00:09]} 42. Kf2 {[%emt 0:00:30]} b4 {[%emt 0:00:30]} 43. Qxh6+ {[%emt 0:00:30]} Ke7 {[%emt 0:00:30]} 44. Qg6 {[%emt 0:00:30]} Qc3 {[%emt 0:03:09]} 45. Ke2 {[%emt 0:02:18]} Qc4+ {[%emt 0:02:14]} 46. Qd3 {[%emt 0:00:24]} Qe6 {[%emt 0:00:02]} 47. g5 {[%emt 0:01:44]} Qg4+ {[%emt 0:03:16]} 48. Kd2 {[%emt 0:00:28]} Qg2+ {[%emt 0:01:56]} 49. Kc1 {[%emt 0:00:39]} Qh1+ {[%emt 0:00:30]} 50. Kb2 {[%emt 0:00:26]} Qh8+ {[%emt 0:00:21]} 51. Kb3 {[%emt 0:01:34]} Qa8 {[%emt 0:00:02]} 52. Kb2 {[%emt 0:04:50]} Qh8+ {[%emt 0:00:00]} 53. Kb3 {[%emt 0:01:16]} Qa8 {[%emt 0:00:02]} 54. Qh7+ {[%emt 0:01:08]} Kd6 {[%emt 0:00:03]} 55. Qg6+ {[%emt 0:00:46]} Kc7 {[%emt 0:01:00]} 56. Kc4 {[%emt 0:01:40]} Qa3 {[%emt 0:00:55]} 57. Qg7+ {[%emt 0:02:39]} Kb6 {[%emt 0:00:13]} 58. Qf6+ {[%emt 0:00:14]} Kb7 {[%emt 0:01:04]} 59. Qe7+ {[%emt 0:00:09]} Kb8 {[%emt 0:00:02]} 1-0

[Event "Int SVK-ch Open 2020"]
[Site "Drienica"]
[Date "2020.08.14"]
[Round "8.2"]
[White "Durica, Daniel"]
[Black "Paluska, Karol"]
[Result "1/2-1/2"]
[ECO "E10"]
[WhiteElo "1937"]
[BlackElo "1873"]
[Annotator "ChessBase"]
[PlyCount "46"]
[EventDate "2020.08.07"]
[EventType "swiss"]
[EventCountry "SVK"]
[SourceTitle "playchess.com"]
[Source "ChessBase"]
[SourceQuality "1"]
[TimeControl "40/5400+30:1800+30"]

1. d4 {[%emt 0:00:00]} Nf6 {[%emt 0:00:00]} 2. c4 {[%emt 0:00:00]} e6 {[%emt 0:00:00]} 3. Nf3 {[%emt 0:00:28]} d5 {[%emt 0:00:00]} 4. cxd5 {[%emt 0:00:20]} exd5 {[%emt 0:00:00]} 5. Nc3 {[%emt 0:00:23]} c6 {[%emt 0:01:42]} 6. Bg5 {[%emt 0:00:15]} Bb4 {[%emt 0:00:12]} 7. Qc2 {[%emt 0:03:09]} Be6 {[%emt 0:10:11]} 8. e3 {[%emt 0:05:45]} Nbd7 {[%emt 0:00:05]} 9. Bd3 {[%emt 0:00:45]} h6 {[%emt 0:01:40]} 10. Bh4 {[%emt 0:02:14]} Qa5 {[%emt 0:00:38]} 11. O-O {[%emt 0:01:00]} Bd6 {[%emt 0:02:09]} 12. a3 {[%emt 0:04:54]} Qc7 {[%emt 0:00:26]} 13. Rac1 {[%emt 0:01:11]} a6 {[%emt 0:09:46]} 14. b4 {[%emt 0:04:42]} Bg4 {[%emt 0:01:13]} 15. Bg3 {[%emt 0:02:56]} Bxf3 {[%emt 0:01:34]} 16. gxf3 {[%emt 0:00:59]} Bxg3 {[%emt 0:28:17]} 17. fxg3 {[%emt 0:02:05]} O-O {[%emt 0:00:37]} 18. Qf2 {[%emt 0:06:27]} Rae8 {[%emt 0:08:10]} 19. g4 {[%emt 0:03:46]} Nb6 {[%emt 0:01:19]} 20. h4 Rxe3 {[%emt 0:03:56]} 21. Qxe3 {[%emt 0:19:39]} Qg3+ {[%emt 0:00:05]} 22. Kh1 {[%emt 0:00:27]} Qh3+ {[%emt 0:06:23]} 23. Kg1 {[%emt 0:02:09]} Qg3+ {[%emt 0:00:16]} 1/2-1/2

[Event "Int SVK-ch Open 2020"]
[Site "Drienica"]
[Date "2020.08.15"]
[Round "8.4"]
[White "Istona, Martin"]
[Black "Panko, Radoslav"]
[Result "1-0"]
[ECO "C02"]
[WhiteElo "2267"]
[BlackElo "2025"]
[Annotator "ChessBase"]
[PlyCount "74"]
[EventDate "2020.08.07"]
[EventType "swiss"]
[EventCountry "SVK"]
[TimeControl "40/5400+30:1800+30"]

1. e4 {[%emt 0:00:00]} e6 {[%emt 0:00:00]} 2. d4 {[%emt 0:00:00]} d5 {[%emt 0:00:00]} 3. e5 {[%emt 0:00:00]} c5 {[%emt 0:00:00]} 4. c3 {[%emt 0:00:04]} Nc6 {[%emt 0:00:00]} 5. Nf3 {[%emt 0:00:07]} Bd7 {[%emt 0:00:00]} 6. Be2 {[%emt 0:00:25]} f6 {[%emt 0:00:47]} 7. O-O {[%emt 0:00:32]} fxe5 {[%emt 0:02:43]} 8. Nxe5 {[%emt 0:01:17]} Nxe5 {[%emt 0:00:06]} 9. dxe5 {[%emt 0:00:06]} Qc7 {[%emt 0:00:20]} 10. c4 {[%emt 0:00:12]} O-O-O {[%emt 0:01:25]} 11. Bf4 {[%emt 0:06:36]} Ne7 {[%emt 0:13:09]} 12. Nc3 {[%emt 0:05:27]} g5 {[%emt 0:06:36]} 13. Bg3 {[%emt 0:08:23]} Nf5 {[%emt 0:07:10]} 14. cxd5 {[%emt 0:36:13]} Nxg3 {[%emt 0:00:47]} 15. fxg3 {[%emt 0:00:15]} Qxe5 {[%emt 0:00:20]} 16. Bf3 {[%emt 0:04:19]} Bg7 {[%emt 0:10:42]} 17. Qb3 {[%emt 0:03:14]} Qd4+ {[%emt 0:06:45]} 18. Kh1 {[%emt 0:00:56]} c4 {[%emt 0:01:03]} 19. Qc2 {[%emt 0:00:53]} Qc5 {[%emt 0:20:04]} 20. Ne4 {[%emt 0:02:24]} Qxd5 {[%emt 0:04:31]} 21. Rad1 {[%emt 0:04:29]} Bd4 {[%emt 0:01:12]} 22. Nd2 {[%emt 0:06:25]} Qc5 {[%emt 0:01:34]} 23. b4 {[%emt 0:01:01]} cxb3 {[%emt 0:04:02]} 24. Qxb3 {[%emt 0:01:16]} Qb5 {[%emt 0:02:38]} 25. Qc2+ {[%emt 0:04:22]} Bc6 {[%emt 0:04:42]} 26. Rc1 {[%emt 0:04:13]} Be3 {[%emt 0:07:27]} 27. Bxc6 {[%emt 0:00:17]} bxc6 {[%emt 0:00:11]} 28. Qe4 {[%emt 0:01:00]} Bxd2 {[%emt 0:01:01]} 29. Rxc6+ {[%emt 0:03:33]} Kb8 {[%emt 0:00:39]} 30. Rb1 {[%emt 0:00:30]} Bb4 {[%emt 0:00:14]} 31. h3 {[%emt 0:02:01]} a5 {[%emt 0:01:22]} 32. a3 {[%emt 0:00:25]} Qd5 {[%emt 0:02:28]} 33. Rxb4+ {[%emt 0:01:13]} axb4 {[%emt 0:00:37]} 34. Qxb4+ {[%emt 0:00:07]} Ka7 {[%emt 0:00:15]} 35. Qb6+ {[%emt 0:00:19]} Ka8 {[%emt 0:00:08]} 36. Rc7 {[%emt 0:00:25]} Qd1+ {[%emt 0:02:31]} 37. Kh2 {[%emt 0:00:08]} Qa4 {[%emt 0:00:28]} 1-0

[Event "Int SVK-ch Open 2020"]
[Site "Drienica"]
[Date "2020.08.14"]
[Round "8.4"]
[White "Furman, Slavomir"]
[Black "Bakalar, Jan"]
[Result "0-1"]
[ECO "A48"]
[WhiteElo "1754"]
[BlackElo "1896"]
[Annotator "NA RC"]
[PlyCount "94"]
[EventDate "2020.08.07"]
[EventType "swiss"]
[EventCountry "SVK"]
[SourceTitle "playchess.com"]
[Source "ChessBase"]
[SourceQuality "1"]
[TimeControl "40/5400+30:1800+30"]

{[%evp 8,92,7,13,25,-15,12,0,32767,32767,32767,32767,32767,32767,32767,32767,32767,32767,32767,140,168,32767,111,66,83,32767,32767,32767,112,32767,32767,83,32767,106,161,134,133,121,162,144,32767,56,65,32767,32767,32767,89,51,182,32767,32767,14,31,11,22,14,18,5,44,-150,-140,-227,-158,-260,-193,-257,-261,-277,-229,-337,-383,-349,-375,-461,-467,-496,-187,-196,-170,-290,0,-227,0,-378,-209,-510,-474]} 1. d4 {[%emt 0:00:00]} Nf6 {[%emt 0:00:00]} 2. Nf3 {[%emt 0:00:47]} g6 {[%emt 0:01:44]} 3. Bf4 {[%emt 0:01:16]} Bg7 {[%emt 0:00:49]} 4. e3 {[%emt 0:00:28]} O-O {[%emt 0:00:33]} 5. Be2 {[%emt 0:00:13]} d6 {[%emt 0:01:20]} 6. O-O {[%emt 0:00:56]} c6 {[%emt 0:04:12] 6...c5 is setting a new trend. A48: 1 d4 Nf6 2 Nf3 g6: Torre, London and Colle Systems.} 7. c4 {[%emt 0:04:08]} h6 {[%emt 0:02:11]} 8. h3 {[%emt 0:01:10] [#]} Re8 $146 {[%emt 0:03:41]} ({Predecessor:} 8... Qb6 9. Qb3 c5 10. Nc3 cxd4 11. exd4 Bf5 12. Be3 Qc7 13. Rac1 b6 14. Nh4 Bc8 {1-0 (34) Jaskunaite,A (1323)-Mickunaite,A (1105) Vilnius 2019}) 9. Nc3 {[%emt 0:00:18]} a6 {[%emt 0:01:53]} 10. Qc2 {[%emt 0:06:41]} Nbd7 {[%emt 0:03:59]} 11. Rfd1 {[%emt 0:01:16]} Nf8 {[%emt 0:01:49]} 12. Rac1 {[%emt 0:01:10]} e6 {[%emt 0:07:00]} 13. e4 {[%emt 0:06:50]} d5 {[%emt 0:06:15]} 14. Be5 {[%emt 0:17:23]} N8d7 {[%emt 0:07:56]} 15. Bxf6 {[%emt 0:04:59]} Nxf6 {[%emt 0:00:31]} 16. e5 {[%emt 0:00:13]} Nh7 {[%emt 0:02:26]} 17. c5 {[%emt 0:02:35]} Nf8 {[%emt 0:04:12]} 18. Rd3 {[%emt 0:08:06]} Qe7 {[%emt 0:02:46]} 19. Qd2 {[%emt 0:02:45]} g5 {[%emt 0:02:37]} 20. Nh2 {[%emt 0:01:26]} Nh7 {[%emt 0:06:31]} (20... f6 $16) 21. Bh5 {[%emt 0:10:33]} Rf8 {[%emt 0:00:19]} 22. Re1 {[%emt 0:09:27]} Bd7 {[%emt 0:01:05]} 23. Bd1 {[%emt 0:08:11]} f5 {[%emt 0:04:52]} 24. Na4 {[%emt 0:05:18]} ({White should play} 24. exf6 $16 Nxf6 25. Rde3) 24... Be8 {[%emt 0:00:39]} 25. Rb3 {[%emt 0:00:48]} Bg6 {[%emt 0:01:15]} 26. Be2 {[%emt 0:00:34]} Qc7 {[%emt 0:04:21]} 27. Qb4 {[%emt 0:01:46]} Rfe8 {[%emt 0:01:38]} (27... Rab8 $14) 28. Qb6 {[%emt 0:02:36]} Qxb6 {[%emt 0:00:16]} 29. Rxb6 {[%emt 0:00:40]} Re7 {[%emt 0:02:19]} 30. Bd3 {[%emt 0:00:07]} Nf8 {[%emt 0:00:36]} 31. Rc1 {[%emt 0:01:51]} Rc7 {[%emt 0:00:16]} 32. Rc3 {[%emt 0:00:26]} Re8 {[%emt 0:06:54]} 33. b4 $2 {[%emt 0:01:34]} (33. Rcb3 $11 Ree7 34. Nc3) 33... Nd7 {[%emt 0:00:45]} 34. g4 {[%emt 0:01:21]} (34. Bxa6 $17 bxa6 35. Rxa6) 34... Nxb6 {[%emt 0:00:51]} 35. Nxb6 {[%emt 0:00:02]} (35. cxb6 $17 Rf7 36. gxf5 Bxf5 37. Bxf5 exf5 38. Nc5) 35... Kh7 {[%emt 0:00:56]} 36. f3 {[%emt 0:00:13]} Rf8 {[%emt 0:00:50]} 37. Kg2 {[%emt 0:00:18]} fxg4 {[%emt 0:01:15]} 38. fxg4 {[%emt 0:00:09]} (38. hxg4 $142 Rcf7 39. Bxg6+ Kxg6 40. Rd3) 38... Rcf7 {[%emt 0:00:53]} 39. Bxg6+ {[%emt 0:00:10]} Kxg6 {[%emt 0:00:04]} 40. Rc2 {[%emt 0:00:14]} Rf4 {[%emt 0:01:46]} 41. Rd2 {[%emt 0:30:08]} R8f7 $2 {[%emt 0:37:53]} (41... Re4 42. Na4 Rff4) 42. Nc8 {[%emt 0:00:47]} Bf8 {[%emt 0:00:37]} 43. Nb6 {[%emt 0:00:53]} Bg7 {[%emt 0:07:16]} 44. Nc8 $1 {[%emt 0:00:46] [#]} Bf8 $11 {[%emt 0:00:00]} (44... b5 $1 $19 45. cxb6 Rb7) 45. Nb6 $1 {[%emt 0:00:00]} h5 {[%emt 0:00:00]} (45... Re4 $142 46. Nc8 Rff4) 46. Kg3 $2 {[%emt 0:00:00]} (46. Nc8) 46... Bg7 {[%emt 0:00:00]} 47. Nc8 {[%emt 0:00:00]} Rxd4 {[%emt 0:00:00]} 0-1

[Event "Int SVK-ch Open 2020"]
[Site "Drienica"]
[Date "2020.08.15"]
[Round "8.5"]
[White "Priechodsky, Radovan"]
[Black "Juhar, Roman"]
[Result "0-1"]
[ECO "A40"]
[WhiteElo "1975"]
[BlackElo "2225"]
[Annotator "ChessBase"]
[PlyCount "120"]
[EventDate "2020.08.07"]
[EventType "swiss"]
[EventCountry "SVK"]
[TimeControl "40/5400+30:1800+30"]

1. d4 {[%emt 0:00:00]} g6 {[%emt 0:00:00]} 2. g3 {[%emt 0:00:32]} Bg7 {[%emt 0:00:00]} 3. Bg2 {[%emt 0:00:04]} e6 {[%emt 0:00:16]} 4. e3 {[%emt 0:00:24]} Ne7 {[%emt 0:00:09]} 5. c4 {[%emt 0:00:28]} d5 {[%emt 0:00:33]} 6. cxd5 {[%emt 0:01:24]} exd5 {[%emt 0:01:42]} 7. Nc3 {[%emt 0:01:53]} c6 {[%emt 0:00:18]} 8. Nf3 {[%emt 0:01:21]} O-O {[%emt 0:00:33]} 9. O-O {[%emt 0:00:34]} Bg4 {[%emt 0:02:34]} 10. h3 {[%emt 0:05:48]} Bxf3 {[%emt 0:00:16]} 11. Bxf3 {[%emt 0:00:54]} f5 {[%emt 0:00:06]} 12. b4 {[%emt 0:07:32]} a6 {[%emt 0:02:55]} 13. a4 {[%emt 0:01:45]} Nd7 {[%emt 0:00:58]} 14. Ba3 {[%emt 0:14:58]} b5 {[%emt 0:00:55]} 15. axb5 {[%emt 0:05:10]} axb5 {[%emt 0:00:09]} 16. Qc2 {[%emt 0:00:20]} Nb6 {[%emt 0:00:22]} 17. Bb2 {[%emt 0:00:11]} Qd6 {[%emt 0:00:18]} 18. Rfb1 {[%emt 0:05:58]} Nc4 {[%emt 0:00:47]} 19. Rxa8 {[%emt 0:01:33]} Rxa8 {[%emt 0:00:10]} 20. Bc1 {[%emt 0:00:22]} Nc8 {[%emt 0:01:28]} 21. Be2 {[%emt 0:01:47]} N8b6 {[%emt 0:00:18]} 22. Bd3 {[%emt 0:02:39]} h5 {[%emt 0:07:23]} 23. h4 {[%emt 0:01:57]} Bh6 {[%emt 0:08:15]} 24. Bxc4 {[%emt 0:19:30]} Nxc4 {[%emt 0:01:36]} 25. e4 {[%emt 0:00:52]} Bxc1 {[%emt 0:17:13]} 26. e5 {[%emt 0:00:10]} Qf8 {[%emt 0:00:25]} 27. Qxc1 {[%emt 0:00:35]} f4 {[%emt 0:03:12]} 28. Qxf4 {[%emt 0:05:54]} Qxf4 {[%emt 0:00:11]} 29. gxf4 {[%emt 0:00:08]} Nd2 {[%emt 0:01:39]} 30. Rc1 {[%emt 0:01:30]} Nf3+ {[%emt 0:00:39]} 31. Kf1 {[%emt 0:00:50]} Nxh4 {[%emt 0:05:52]} 32. Ne2 {[%emt 0:03:49]} Ra6 {[%emt 0:00:18]} 33. Ng3 {[%emt 0:04:13]} Nf3 {[%emt 0:00:46]} 34. Rd1 {[%emt 0:03:54]} Ra2 {[%emt 0:01:29]} 35. Kg2 {[%emt 0:07:23]} Nd2 {[%emt 0:02:26]} 36. Kh3 {[%emt 0:00:30]} Kf7 {[%emt 0:00:35]} 37. f5 {[%emt 0:00:08]} gxf5 {[%emt 0:01:47]} 38. Nxf5 {[%emt 0:00:14]} Ne4 {[%emt 0:01:11]} 39. Nd6+ {[%emt 0:00:32]} Nxd6 {[%emt 0:00:05]} 40. exd6 {[%emt 0:00:09]} Ke6 {[%emt 0:00:17]} 41. f4 {[%emt 0:30:40]} Kxd6 {[%emt 0:33:35]} 42. Kh4 {[%emt 0:00:00]} Ke6 {[%emt 0:00:00]} 43. Rc1 {[%emt 0:00:00]} Kf5 {[%emt 0:00:00]} 44. Rxc6 {[%emt 0:00:00]} Kxf4 {[%emt 0:00:00]} 45. Kh3 {[%emt 0:00:00]} Rb2 {[%emt 0:00:00]} 46. Rc5 {[%emt 0:00:00]} Rxb4 {[%emt 0:00:00]} 47. Rxd5 {[%emt 0:00:00]} Ke4 {[%emt 0:00:00]} 48. Rxh5 {[%emt 0:00:00]} Kxd4 {[%emt 0:00:00]} 49. Kg2 {[%emt 0:00:00]} Rb2+ {[%emt 0:00:00]} 50. Kf1 {[%emt 0:00:00]} b4 {[%emt 0:00:00]} 51. Ke1 {[%emt 0:00:00]} Kc3 {[%emt 0:00:00]} 52. Rc5+ {[%emt 0:00:00]} Kb3 {[%emt 0:00:00]} 53. Kd1 {[%emt 0:00:00]} Rb1+ {[%emt 0:00:00]} 54. Kd2 {[%emt 0:00:00]} Ka2 {[%emt 0:00:00]} 55. Ra5+ {[%emt 0:02:02]} Kb2 {[%emt 0:00:00]} 56. Rb5 {[%emt 0:02:56]} b3 {[%emt 0:00:00]} 57. Rb7 {[%emt 0:00:54]} Rh1 {[%emt 0:00:00]} 58. Rb8 {[%emt 0:00:43]} Ka2 {[%emt 0:00:00]} 59. Kc3 {[%emt 0:00:49]} Rc1+ {[%emt 0:00:00]} 60. Kd2 {[%emt 0:00:15]} b2 {[%emt 0:00:00]} 0-1

[Event "Int SVK-ch Open 2020"]
[Site "Drienica"]
[Date "2020.08.14"]
[Round "8.5"]
[White "Ivanecka, Natalia"]
[Black "Geffert, Peter"]
[Result "1/2-1/2"]
[ECO "B90"]
[WhiteElo "1641"]
[BlackElo "1857"]
[Annotator "NA RC"]
[PlyCount "68"]
[EventDate "2020.08.07"]
[EventType "swiss"]
[EventCountry "SVK"]
[SourceTitle "playchess.com"]
[Source "ChessBase"]
[SourceQuality "1"]
[TimeControl "40/5400+30:1800+30"]

{[%evp 10,67,14,12,9,32767,27,32767,27,32767,20,-3,32767,32767,32767,32767,110,-42,32767,32767,32767,32767,32767,32767,32767,32767,32767,32767,32767,32767,32767,-80,0,-254,-31,-143,32767,190,32767,32767,-68,-42,-47,32767,32767,-39,-51,-35,32767,32767,-38,-83,-97,-91,-37,-55,-31,-43,0,-15]} 1. e4 {[%emt 0:00:00]} c5 {[%emt 0:00:00]} 2. Nf3 {[%emt 0:00:00]} d6 {[%emt 0:00:00]} 3. d4 {[%emt 0:00:00]} cxd4 {[%emt 0:00:00]} 4. Nxd4 {[%emt 0:00:00]} Nf6 {[%emt 0:00:00]} 5. Nc3 {[%emt 0:00:00]} a6 {[%emt 0:00:02]} 6. Be3 {[%emt 0:05:17]} e5 {[%emt 0:00:37]} 7. Nb3 {[%emt 0:04:31]} Be6 {[%emt 0:00:47]} 8. Be2 {[%emt 0:03:45]} Nbd7 {[%emt 0:01:29]} 9. O-O {[%emt 0:05:01]} Be7 {[%emt 0:00:58]} 10. Qd2 {[%emt 0:08:56]} O-O {[%emt 0:01:05]} 11. Rad1 {[%emt 0:02:31] B92: Sicilian Najdorf: 6 Be2.} Rc8 {[%emt 0:01:26]} 12. f4 {[%emt 0:10:08] [#]} Nb6 $2 $146 {[%emt 0:06:12]} (12... b5 $15 {keeps the upper hand.}) ({Predecessor:} 12... exf4 13. Bxf4 Ne5 14. Nd4 b5 15. Bxe5 dxe5 16. Nxe6 fxe6 17. Qxd8 Rfxd8 18. Rxd8+ Rxd8 19. Rd1 Bc5+ 20. Kh1 Bd4 21. Bf3 Rc8 22. h3 h5 23. Kh2 g5 24. Rd2 g4 25. hxg4 hxg4 26. Bd1 g3+ {0-1 (26) Schneider,L (1747)-Koch,M (2170) Wiesbaden 2015}) 13. f5 $2 {[%emt 0:08:49]} ({Only move:} 13. fxe5 $16 dxe5 14. Qxd8 {[%mdl 64] Remove Defender} Bxd8 15. Rxd8 {[%mdl 64] Remove Defender} Rfxd8 16. Bxb6) 13... Bc4 {[%emt 0:00:23]} 14. Rf3 {[%emt 0:04:54]} Bxe2 {[%emt 0:03:28]} 15. Qxe2 {[%emt 0:00:14]} Nc4 {[%emt 0:03:20]} 16. Bc1 {[%emt 0:01:46]} Qb6+ {[%emt 0:03:05]} 17. Kh1 {[%emt 0:00:17]} Qc6 {[%emt 0:00:53]} 18. Rh3 {[%emt 0:09:06]} Nb6 {[%emt 0:09:49]} 19. Qe1 {[%emt 0:04:55]} Rfd8 {[%emt 0:14:01]} 20. Qh4 {[%emt 0:05:15]} (20. g4 $14 {stays ahead.} d5 21. Na5) 20... d5 {[%emt 0:14:55]} 21. Bg5 $2 {[%emt 0:07:34] [#]} (21. g4 $15 d4 22. g5 dxc3 {[%mdl 64] Discovered Attack} 23. Re1) 21... dxe4 $2 {[%emt 0:02:38]} (21... d4 $1 $19 {[%cal Rd4c3]} 22. Bxf6 Bxf6 23. Qxh7+ Kf8) 22. Bxf6 {[%emt 0:03:37]} (22. Re1 $15) 22... Bxf6 {[%emt 0:09:05]} 23. Qxh7+ {[%emt 0:01:31]} Kf8 {[%emt 0:00:30]} 24. Qh5 {[%emt 0:01:26] [#]} Nc4 $1 {[%emt 0:03:02]} 25. Qe2 {[%emt 0:03:59]} (25. Qg4 $17) 25... Nxb2 {[%emt 0:05:51]} (25... e3 $17 26. Rd5 g5) 26. Rh8+ {[%emt 0:02:36]} Ke7 {[%emt 0:00:36]} 27. Rdxd8 {[%emt 0:01:13]} Rxd8 {[%emt 0:00:32]} 28. Rxd8 {[%emt 0:00:09]} Kxd8 {[%emt 0:00:41]} 29. Nxe4 {[%emt 0:00:39]} Be7 {[%emt 0:03:53]} 30. Qd2+ {[%emt 0:03:22]} Ke8 {[%emt 0:05:46]} 31. Qe2 {[%emt 0:01:38]} Nc4 {[%emt 0:02:52]} (31... Qc4 $17 32. Qxc4 Nxc4) 32. h3 {[%emt 0:00:26]} Na3 {[%emt 0:06:21]} 33. c3 {[%emt 0:00:28]} Nb5 {[%emt 0:01:30]} 34. c4 $11 {[%emt 0:00:43]} Na3 {[%emt 0:06:56]} 1/2-1/2

[Event "Int SVK-ch Open 2020"]
[Site "Drienica"]
[Date "2020.08.15"]
[Round "8.6"]
[White "Majek, Kacper"]
[Black "Demeter, Peter"]
[Result "1-0"]
[ECO "E91"]
[WhiteElo "1970"]
[BlackElo "2139"]
[Annotator "ChessBase"]
[PlyCount "87"]
[EventDate "2020.08.07"]
[EventType "swiss"]
[EventCountry "SVK"]
[TimeControl "40/5400+30:1800+30"]

1. d4 {[%emt 0:00:00]} g6 {[%emt 0:00:00]} 2. c4 {[%emt 0:00:00]} Nf6 {[%emt 0:00:06]} 3. Nf3 {[%emt 0:00:00]} Bg7 {[%emt 0:00:07]} 4. Nc3 {[%emt 0:01:44]} c5 {[%emt 0:01:15]} 5. d5 {[%emt 0:00:09]} d6 {[%emt 0:00:05]} 6. e4 {[%emt 0:00:11]} O-O {[%emt 0:00:07]} 7. Be2 {[%emt 0:00:32]} b5 {[%emt 0:01:03]} 8. cxb5 {[%emt 0:00:34]} a6 {[%emt 0:00:06]} 9. O-O {[%emt 0:00:12]} axb5 {[%emt 0:02:06]} 10. Bxb5 {[%emt 0:00:05]} Ba6 {[%emt 0:00:06]} 11. Bxa6 {[%emt 0:05:11]} Nxa6 {[%emt 0:00:07]} 12. Qe2 {[%emt 0:02:35]} Nd7 {[%emt 0:00:18]} 13. Bf4 {[%emt 0:01:20]} Qb8 {[%emt 0:11:17]} 14. Rfe1 {[%emt 0:01:48]} f6 {[%emt 0:05:29]} 15. h4 {[%emt 0:05:23]} Qe8 {[%emt 0:07:22]} 16. Nd2 {[%emt 0:03:42]} Qf7 {[%emt 0:09:19]} 17. Nc4 {[%emt 0:00:59]} h5 {[%emt 0:04:54]} 18. Qd2 {[%emt 0:10:12]} Nc7 {[%emt 0:04:33]} 19. Re2 {[%emt 0:17:37]} Rfb8 {[%emt 0:00:22]} 20. Bg3 {[%emt 0:02:30]} Rb4 {[%emt 0:02:40]} 21. Qd3 {[%emt 0:10:11]} Ne5 {[%emt 0:05:20]} 22. Bxe5 {[%emt 0:00:08]} fxe5 {[%emt 0:04:22]} 23. a3 {[%emt 0:09:54]} Rbb8 {[%emt 0:00:29]} 24. Qh3 {[%emt 0:00:00]} Ra7 {[%emt 0:07:15]} 25. Rd1 {[%emt 0:01:01]} Bf6 {[%emt 0:04:10]} 26. Rd3 {[%emt 0:02:33]} Bg7 {[%emt 0:00:53]} 27. Rf3 {[%emt 0:01:37]} Qe8 {[%emt 0:00:19]} 28. g4 {[%emt 0:02:20]} Qd7 {[%emt 0:02:51]} 29. Rg3 {[%emt 0:00:10]} Bh6 {[%emt 0:02:32]} 30. Qg2 {[%emt 0:00:55]} Bf4 {[%emt 0:01:01]} 31. gxh5 {[%emt 0:00:55]} Bxg3 {[%emt 0:03:03]} 32. Qxg3 {[%emt 0:00:00]} e6 {[%emt 0:00:30]} 33. hxg6 {[%emt 0:02:29]} exd5 {[%emt 0:22:23]} 34. exd5 {[%emt 0:20:03]} Rf8 {[%emt 0:00:30]} 35. Re4 {[%emt 0:00:30]} Ne8 {[%emt 0:00:30]} 36. h5 {[%emt 0:00:30]} Qf5 {[%emt 0:00:30]} 37. h6 {[%emt 0:00:30]} Rf6 {[%emt 0:00:30]} 38. Rg4 {[%emt 0:00:30]} Qf3 {[%emt 0:00:30]} 39. Ne4 {[%emt 0:00:30]} Qd1+ {[%emt 0:00:30]} 40. Kh2 {[%emt 0:00:30]} Rf4 {[%emt 0:00:30]} 41. Ne3 {[%emt 0:30:30]} Qd4 {[%emt 0:30:30]} 42. Rxf4 {[%emt 0:00:30]} exf4 {[%emt 0:00:30]} 43. Qxf4 {[%emt 0:00:30]} Rb7 {[%emt 0:00:30]} 44. h7+ {[%emt 0:00:30]} 1-0